bitfinex/quotes_BTCUSD_20250802
["timestamp","ask_amount","ask_price","bid_price","bid_amount"]
[1754167652047,0.40905761,112650.0,112640.0,0.01790533]
[1754167652874,0.40756761,112650.0,112640.0,0.01790533]
[1754167654152,0.39367128,112650.0,112640.0,0.01790533]
[1754167654981,0.39367128,112650.0,112640.0,0.06018533]
[1754167655132,0.39367128,112650.0,112640.0,0.06716042]
[1754167656216,0.39516128,112650.0,112640.0,0.00697509]
[1754167657074,0.05516128,112650.0,112640.0,0.00697509]
[1754167657314,0.05516128,112650.0,112640.0,0.02488042]
[1754167657315,0.05367128,112650.0,112640.0,0.02488042]
[1754167657555,0.05367128,112650.0,112640.0,0.06018533]
[1754167657849,0.14379412,112650.0,112630.0,0.06678086]
[1754167658069,0.22656284,112640.0,112620.0,0.04228]
[1754167658309,0.00347,112630.0,112620.0,0.02955189]
[1754167658542,0.00198,112630.0,112620.0,0.07183189]
[1754167658994,0.34198,112630.0,112620.0,0.06018533]
[1754167659212,0.35031592,112630.0,112620.0,0.06018533]
[1754167659656,0.44043876,112630.0,112610.0,0.04228]
[1754167659894,0.34,112610.0,112600.0,0.04228]
[1754167660119,0.35031592,112610.0,112600.0,0.04228]
[1754167660782,0.35031592,112610.0,112590.0,0.06315533]
[1754167661011,0.38087176,112610.0,112590.0,0.06315533]
[1754167661278,0.47672,112600.0,112590.0,0.04275897]
[1754167661496,0.4787,112600.0,112590.0,0.0606643]
[1754167661737,0.4787,112600.0,112590.0,0.04275897]
[1754167662185,0.4787,112600.0,112590.0,0.0606643]
[1754167662820,0.4787,112600.0,112590.0,0.0636343]
[1754167663077,0.51442709,112600.0,112590.0,0.08366573]
[1754167663319,0.51442709,112600.0,112590.0,0.0657604]
[1754167663551,0.51442709,112600.0,112590.0,0.0636343]
[1754167665779,0.60305993,112600.0,112590.0,0.00047897]
[1754167666006,0.60454993,112600.0,112590.0,0.00047897]
[1754167666219,0.61135715,112600.0,112590.0,0.00047897]
[1754167666452,0.61135715,112600.0,112590.0,0.04275897]
[1754167666697,0.38402431,112600.0,112590.0,0.0541724]
[1754167666923,0.01744902,112640.0,112590.0,0.07207773]
[1754167667156,0.001,112600.0,112590.0,0.32347613]
[1754167667374,0.13716,112630.0,112620.0,0.01790533]
[1754167667596,0.22579284,112640.0,112620.0,0.01998533]
[1754167667840,0.48545188,112640.0,112630.0,0.01690533]
[1754167668062,0.14945188,112640.0,112630.0,0.06423533]
[1754167668287,0.35229188,112640.0,112630.0,0.06423533]
[1754167668509,0.38881749,112640.0,112630.0,0.06423533]
[1754167668720,0.38052561,112640.0,112630.0,0.06423533]
[1754167668931,0.38052561,112640.0,112630.0,0.07223032]
[1754167669143,0.38052561,112640.0,112630.0,0.07270929]
[1754167669363,0.39042439,112640.0,112630.0,0.07270929]
[1754167670687,0.41712039,112640.0,112630.0,0.07270929]
[1754167671113,0.41712039,112640.0,112630.0,0.07370929]
[1754167673917,0.40322161,112640.0,112630.0,0.07570929]
[1754167675554,0.41711918,112640.0,112630.0,0.07570929]
[1754167677425,0.39042318,112640.0,112630.0,0.07570929]
[1754167679351,0.39240318,112640.0,112630.0,0.02837929]
[1754167679567,0.39240318,112640.0,112630.0,0.06931929]
[1754167681114,0.39240318,112640.0,112630.0,0.07443929]
[1754167681543,0.41909918,112640.0,112630.0,0.07443929]
[1754167681760,0.42157918,112640.0,112630.0,0.01147396]
[1754167682200,0.42157918,112640.0,112630.0,0.00347897]
[1754167682428,0.51850849,112640.0,112630.0,0.00347897]
[1754167683288,0.51850849,112640.0,112630.0,0.00247897]
[1754167683525,0.51950849,112640.0,112630.0,0.00247897]
[1754167683949,0.49731445,112640.0,112630.0,0.00247897]
[1754167684184,0.5222074,112640.0,112630.0,0.00047897]
[1754167684633,0.5212074,112640.0,112630.0,0.00047897]
[1754167685066,0.5222074,112640.0,112630.0,0.00047897]
[1754167687086,0.53610632,112640.0,112630.0,0.00047897]
[1754167689083,0.53362632,112640.0,112630.0,0.04141897]
[1754167689956,0.53362632,112640.0,112630.0,0.0526874]
[1754167690718,0.51703109,112640.0,112630.0,0.0526874]
[1754167691236,0.53363327,112640.0,112630.0,0.0526874]
[1754167691462,0.5336349,112640.0,112630.0,0.0495274]
[1754167691910,0.51703109,112640.0,112630.0,0.0495274]
[1754167692126,0.51703109,112640.0,112630.0,0.0526874]
[1754167692331,0.53363845,112640.0,112630.0,0.0526874]
[1754167692753,0.53364456,112640.0,112630.0,0.0526874]
[1754167695100,0.53364456,112640.0,112630.0,0.0495274]
[1754167697274,0.53364456,112640.0,112630.0,0.0526874]
[1754167697712,0.53364456,112640.0,112630.0,0.0475674]
[1754167701390,0.53613456,112640.0,112630.0,0.00047897]
[1754167705255,0.53615739,112640.0,112630.0,0.00047897]
[1754167705673,0.53615739,112640.0,112630.0,0.04162897]
[1754167705897,0.53366739,112640.0,112630.0,0.04664897]
[1754167706099,0.53366739,112640.0,112630.0,0.0530044]
[1754167706824,0.66884739,112640.0,112630.0,0.06990973]
[1754167707064,0.67082739,112640.0,112630.0,0.06990973]
[1754167707523,0.67082739,112640.0,112630.0,0.06684973]
[1754167707975,0.67082739,112640.0,112630.0,0.06990973]
[1754167709148,0.66884739,112640.0,112630.0,0.06990973]
[1754167710099,0.668902,112640.0,112630.0,0.06990973]
[1754167711181,0.670882,112640.0,112630.0,0.06990973]
[1754167711628,0.670882,112640.0,112630.0,0.0585343]
[1754167712926,0.673372,112640.0,112630.0,0.00047897]
[1754167713364,0.69257869,112640.0,112630.0,0.00047897]
[1754167714681,0.7017664,112640.0,112630.0,0.00047897]
[1754167714902,0.67867977,112640.0,112630.0,0.00047897]
[1754167715349,0.76399677,112640.0,112630.0,0.00047897]
[1754167717432,5.26194077,112640.0,112630.0,0.00047897]
[1754167718508,5.19407279,112640.0,112630.0,0.00047897]
[1754167718807,4.497944,112630.0,112610.0,0.00306]
[1754167719014,0.22567284,112620.0,112610.0,0.00318766]
[1754167719204,0.25066472,112620.0,112610.0,0.00514766]
[1754167719419,0.27736872,112620.0,112610.0,0.00514766]
[1754167720209,0.29126925,112620.0,112610.0,0.00714766]
[1754167720845,0.29126925,112620.0,112610.0,0.04729766]
[1754167723150,0.29126925,112620.0,112610.0,0.05371796]
[1754167724858,0.29126925,112620.0,112610.0,0.04729766]
[1754167725552,0.54271641,112620.0,112610.0,0.06420299]
[1754167725779,0.36499188,112620.0,112610.0,0.06420299]
[1754167726000,0.34832656,112620.0,112610.0,0.06420299]
[1754167728620,0.36222627,112620.0,112610.0,0.06420299]
[1754167728829,0.36222627,112620.0,112610.0,0.07084531]
[1754167734968,0.01389971,112620.0,112610.0,0.07084531]
[1754167735183,0.34,112630.0,112620.0,0.01690533]
[1754167735401,0.34832612,112630.0,112620.0,0.01887533]
[1754167735615,0.34832612,112630.0,112620.0,0.06193533]
[1754167735834,0.34832612,112630.0,112620.0,0.08282787]
[1754167736477,0.34932612,112630.0,112620.0,0.08282787]
[1754167736945,0.35278612,112630.0,112620.0,0.01690533]
[1754167737193,0.35278612,112630.0,112620.0,0.01890533]
[1754167737815,0.35278612,112630.0,112620.0,0.05902533]
[1754167737990,0.35030612,112630.0,112620.0,0.05902533]
[1754167738478,0.35030612,112630.0,112620.0,0.06493533]
[1754167738697,0.35030612,112630.0,112620.0,0.07210586]
[1754167738929,0.35030534,112630.0,112620.0,0.06910586]
[1754167739410,0.36520418,112630.0,112620.0,0.06910586]
[1754167739867,0.36620418,112630.0,112620.0,0.06910586]
[1754167740586,0.36422418,112630.0,112620.0,0.06910586]
[1754167740809,0.50126418,112630.0,112620.0,0.06910586]
[1754167741059,0.36422418,112630.0,112620.0,0.06910586]
[1754167741797,0.36620418,112630.0,112620.0,0.06910586]
[1754167742021,0.36420435,112630.0,112620.0,0.06910586]
[1754167742257,0.36420435,112630.0,112620.0,0.07010586]
[1754167742507,0.36222435,112630.0,112620.0,0.07010586]
[1754167742932,0.36420435,112630.0,112620.0,0.06519586]
[1754167744471,0.36420435,112630.0,112620.0,0.06716586]
[1754167744690,0.36420435,112630.0,112620.0,0.07010586]
[1754167745113,0.02420435,112630.0,112620.0,0.07010586]
[1754167748860,0.36420435,112630.0,112620.0,0.06519586]
[1754167749796,0.36420435,112630.0,112620.0,0.06813586]
[1754167751438,0.36420435,112630.0,112620.0,0.07010586]
[1754167756261,0.36420435,112630.0,112620.0,0.06519586]
[1754167758126,0.36420435,112630.0,112620.0,0.07010586]
[1754167758586,0.02420435,112630.0,112620.0,0.07010586]
[1754167758791,0.49910435,112630.0,112620.0,0.07010586]
[1754167759015,0.34832551,112630.0,112620.0,0.07010586]
[1754167760389,0.3622237,112630.0,112620.0,0.07010586]
[1754167770647,0.0222237,112630.0,112620.0,0.07010586]
[1754167771540,0.0222237,112630.0,112620.0,0.1587387]
[1754167771752,0.01389819,112630.0,112620.0,0.1587387]
[1754167771981,0.01389819,112630.0,112620.0,0.16095855]
[1754167772182,0.17336561,112640.0,112620.0,0.16095855]
[1754167772397,0.52169706,112640.0,112630.0,0.05928533]
[1754167772622,0.52367706,112640.0,112630.0,0.07560719]
[1754167773078,0.52367706,112640.0,112630.0,0.08072719]
[1754167773286,0.53757438,112640.0,112630.0,0.08072719]
[1754167773495,0.40173438,112640.0,112630.0,0.08072719]
[1754167773720,0.40273438,112640.0,112630.0,0.08072719]
[1754167773917,0.38783706,112640.0,112630.0,0.08072719]
[1754167774134,0.38883706,112640.0,112630.0,0.08072719]
[1754167774737,0.38883706,112640.0,112630.0,0.07560719]
[1754167774975,0.38683706,112640.0,112630.0,0.07560719]
[1754167775134,0.38683706,112640.0,112630.0,0.07660719]
[1754167775356,0.38783706,112640.0,112630.0,0.07660719]
[1754167775575,0.38783706,112640.0,112630.0,0.08172719]
[1754167775918,0.38683706,112640.0,112630.0,0.08172719]
[1754167776797,0.38683706,112640.0,112630.0,0.07660719]
[1754167777013,0.40073418,112640.0,112630.0,0.07660719]
[1754167778556,0.40073418,112640.0,112630.0,0.08172719]
[1754167778672,0.40073418,112640.0,112630.0,0.07660719]
[1754167784190,0.40073308,112640.0,112630.0,0.07660719]
[1754167786201,0.40073308,112640.0,112630.0,0.07976719]
[1754167786642,0.40073308,112640.0,112630.0,0.08172719]
[1754167787129,0.39875308,112640.0,112630.0,0.08172719]
[1754167787850,0.40073308,112640.0,112630.0,0.08172719]
[1754167789207,0.39875308,112640.0,112630.0,0.08172719]
[1754167789867,0.39875308,112640.0,112630.0,0.08394684]
[1754167790086,0.38485596,112640.0,112630.0,0.08172719]
[1754167790307,0.00833035,112640.0,112630.0,0.08172719]
[1754167790744,0.02222672,112640.0,112630.0,0.08394684]
[1754167790989,0.02222672,112640.0,112630.0,0.17257968]
[1754167791655,0.02420672,112640.0,112630.0,0.15396186]
[1754167791897,0.02668672,112640.0,112630.0,0.03422719]
[1754167792118,0.50332672,112640.0,112630.0,0.01790533]
[1754167792568,0.50333053,112640.0,112630.0,0.01790533]
[1754167793469,0.51999951,112640.0,112630.0,0.01690533]
[1754167793894,0.50710314,112640.0,112630.0,0.01690533]
[1754167794103,0.50810314,112640.0,112630.0,0.01690533]
[1754167794323,0.50810314,112640.0,112630.0,0.03721492]
[1754167794563,0.50810314,112640.0,112630.0,0.01690533]
[1754167795713,0.50810314,112640.0,112630.0,0.05806533]
[1754167795714,0.50562314,112640.0,112630.0,0.05806533]
[1754167796369,0.16562314,112640.0,112630.0,0.05806533]
[1754167797011,0.17952067,112640.0,112630.0,0.05806533]
[1754167797444,0.04090067,112640.0,112630.0,0.06315533]
[1754167797653,0.02423169,112640.0,112630.0,0.0704099]
[1754167798122,0.02323169,112640.0,112630.0,0.0704099]
[1754167798834,0.02423169,112640.0,112630.0,0.0704099]
[1754167799039,0.02323169,112640.0,112630.0,0.0704099]
[1754167799302,0.02223169,112640.0,112630.0,0.0704099]
[1754167799501,0.02223169,112640.0,112630.0,0.0714099]
[1754167801510,0.02421169,112640.0,112630.0,0.0714099]
[1754167801735,0.02669169,112640.0,112630.0,0.00825457]
[1754167802010,0.02669169,112640.0,112630.0,0.0251599]
[1754167802259,0.02669187,112640.0,112630.0,0.0251599]
[1754167802487,0.02421187,112640.0,112630.0,0.0663199]
[1754167804537,0.02421187,112640.0,112630.0,0.0714099]
[1754167804747,0.02521187,112640.0,112630.0,0.0714099]
[1754167804959,0.02521187,112640.0,112630.0,0.0653199]
[1754167805377,0.02621187,112640.0,112630.0,0.0653199]
[1754167808238,0.02621187,112640.0,112630.0,0.0704099]
[1754167809125,0.02621187,112640.0,112630.0,0.04841457]
[1754167809368,0.02870187,112640.0,112630.0,0.01690533]
[1754167810243,0.04288085,112640.0,112630.0,0.01690533]
[1754167810458,0.04288085,112640.0,112630.0,0.05806533]
[1754167810671,0.04537085,112640.0,112630.0,0.01690533]
[1754167810856,0.04537085,112640.0,112630.0,0.03739892]
[1754167811334,0.04537085,112640.0,112630.0,0.01690533]
[1754167811779,0.04537085,112640.0,112630.0,0.05806533]
[1754167811988,0.04288085,112640.0,112630.0,0.05806533]
[1754167812677,0.02621187,112640.0,112630.0,0.05806533]
[1754167812862,0.02423187,112640.0,112630.0,0.06315533]
[1754167813112,0.02423187,112640.0,112630.0,0.07018792]
[1754167813621,0.02621187,112640.0,112630.0,0.07018792]
[1754167815228,0.02423187,112640.0,112630.0,0.07018792]
[1754167817221,0.02323187,112640.0,112630.0,0.07018792]
[1754167817430,0.02223187,112640.0,112630.0,0.07018792]
[1754167817653,0.02223187,112640.0,112630.0,0.07118792]
[1754167820645,0.02223116,112640.0,112630.0,0.07118792]
[1754167823258,0.04892616,112640.0,112630.0,0.07118792]
[1754167823994,0.02223116,112640.0,112630.0,0.07118792]
[1754167824207,0.05251406,112650.0,112630.0,0.07118792]
[1754167824427,0.02582106,112650.0,112640.0,0.06112533]
[1754167824648,0.13704,112670.0,112660.0,0.01690533]
[1754167824878,0.35666315,112670.0,112660.0,0.01893533]
[1754167825128,0.38335315,112670.0,112660.0,0.06195533]
[1754167825369,0.02669,112670.0,112660.0,0.06195533]
[1754167825574,0.36669,112670.0,112660.0,0.06195533]
[1754167825795,0.36669,112670.0,112660.0,0.06815086]
[1754167826019,0.36914897,112670.0,112660.0,0.06815086]
[1754167826700,0.36914897,112670.0,112660.0,0.06615086]
[1754167827160,0.38404373,112670.0,112660.0,0.06615086]
[1754167827613,0.41165811,112670.0,112660.0,0.06615086]
[1754167828265,0.40967811,112670.0,112660.0,0.06615086]
[1754167829735,0.41164811,112670.0,112660.0,0.06615086]
[1754167831557,0.41164811,112670.0,112660.0,0.06097086]
[1754167833109,0.41164811,112670.0,112660.0,0.06628086]
[1754167833350,0.40967811,112670.0,112660.0,0.06628086]
[1754167835092,0.41166811,112670.0,112660.0,0.06628086]
[1754167835310,0.19718379,112670.0,112660.0,0.06628086]
[1754167835524,0.07166711,112670.0,112660.0,0.06628086]
[1754167836167,0.07997694,112670.0,112660.0,0.06628086]
[1754167838248,0.07798694,112670.0,112660.0,0.06628086]
[1754167840799,0.07995694,112670.0,112660.0,0.06628086]
[1754167842408,0.41995694,112670.0,112660.0,0.06628086]
[1754167842610,0.41995694,112670.0,112660.0,0.06097086]
[1754167843500,0.41995826,112670.0,112660.0,0.06313086]
[1754167843689,0.41995826,112670.0,112660.0,0.06628086]
[1754167847762,0.18901926,112670.0,112660.0,0.06628086]
[1754167848198,0.17512898,112670.0,112660.0,0.06628086]
[1754167848813,0.17412898,112670.0,112660.0,0.06628086]
[1754167849060,0.17312898,112670.0,112660.0,0.06628086]
[1754167849302,0.17412898,112670.0,112660.0,0.06628086]
[1754167849485,0.17312898,112670.0,112660.0,0.06628086]
[1754167849896,0.17312898,112670.0,112660.0,0.06728086]
[1754167850445,0.18702319,112670.0,112660.0,0.06728086]
[1754167850872,0.18702319,112670.0,112660.0,0.06828086]
[1754167852274,0.04930319,112670.0,112660.0,0.06828086]
[1754167852276,0.18690319,112670.0,112660.0,0.06828086]
[1754167852867,0.04930319,112670.0,112660.0,0.06828086]
[1754167854160,0.03540898,112670.0,112660.0,0.06828086]
[1754167854878,0.0087946,112670.0,112660.0,0.06828086]
[1754167856457,0.03106853,112670.0,112660.0,0.06828086]
[1754167856681,0.0087946,112670.0,112660.0,0.06828086]
[1754167856899,0.03116673,112670.0,112660.0,0.06828086]
[1754167857118,0.0087946,112670.0,112660.0,0.06828086]
[1754167857330,0.0087946,112670.0,112660.0,0.1569137]
[1754167857772,0.0087946,112670.0,112660.0,0.15913276]
[1754167858357,0.02268804,112670.0,112660.0,0.15913276]
[1754167859337,0.02268804,112670.0,112660.0,0.29673276]
[1754167859520,0.02268804,112670.0,112660.0,0.2945137]
[1754167860423,0.04545755,112670.0,112660.0,0.2945137]
[1754167861162,0.04743755,112670.0,112660.0,0.06513086]
[1754167861395,0.04743755,112670.0,112660.0,0.20053086]
[1754167862129,0.04743755,112670.0,112660.0,0.20560086]
[1754167863812,0.04743755,112670.0,112660.0,0.06297086]
[1754167864061,0.04743755,112670.0,112660.0,0.00819553]
[1754167864062,0.04991755,112670.0,112660.0,0.00819553]
[1754167864288,0.03354411,112670.0,112660.0,0.06418086]
[1754167865861,0.03355554,112670.0,112660.0,0.06418086]
[1754167868499,0.04744998,112670.0,112660.0,0.06418086]
[1754167869651,0.04744998,112670.0,112660.0,0.01690533]
[1754167869652,0.15522787,112670.0,112660.0,0.01690533]
[1754167869860,0.6557545,112670.0,112660.0,0.002]
[1754167870383,0.63266787,112670.0,112660.0,0.002]
[1754167870629,0.63266787,112670.0,112630.0,0.13423348]
[1754167870876,0.08863284,112660.0,112630.0,0.13423348]
[1754167871127,0.00198,112640.0,112630.0,0.13423348]
[1754167871366,0.01030706,112640.0,112630.0,0.13423348]
[1754167871606,0.01030344,112640.0,112630.0,0.12720089]
[1754167871838,0.02420087,112640.0,112630.0,0.12720089]
[1754167873258,0.05089787,112640.0,112630.0,0.12720089]
[1754167873705,0.05089787,112640.0,112630.0,0.12920089]
[1754167873928,0.05089787,112640.0,112630.0,0.13120089]
[1754167874163,0.05089787,112640.0,112630.0,0.15910503]
[1754167874401,0.05089787,112640.0,112630.0,0.1421997]
[1754167874640,0.05089787,112640.0,112630.0,0.11536556]
[1754167874882,0.05089787,112640.0,112630.0,0.11736556]
[1754167875129,0.05089787,112640.0,112630.0,0.13227089]
[1754167875420,0.04257443,112640.0,112630.0,0.13227089]
[1754167875913,0.04257443,112640.0,112630.0,0.11836556]
[1754167876129,0.05088781,112640.0,112630.0,0.1458245]
[1754167876566,0.05088781,112640.0,112630.0,0.1478245]
[1754167877435,0.04257443,112640.0,112630.0,0.1478245]
[1754167878821,0.04257443,112640.0,112630.0,0.07660894]
[1754167879059,0.05088279,112640.0,112630.0,0.05898533]
[1754167880248,0.04890279,112640.0,112630.0,0.06405533]
[1754167880478,0.51827443,112640.0,112630.0,0.06405533]
[1754167880713,0.51827443,112640.0,112630.0,0.07046086]
[1754167887603,0.52026443,112640.0,112630.0,0.07046086]
[1754167889299,0.52857271,112640.0,112630.0,0.07046086]
[1754167890649,0.52658271,112640.0,112630.0,0.07046086]
[1754167891414,0.04890271,112640.0,112630.0,0.07046086]
[1754167891638,0.18646271,112640.0,112630.0,0.07046086]
[1754167891853,0.17256528,112640.0,112630.0,0.07046086]
[1754167892332,0.03500736,112640.0,112630.0,0.07046086]
[1754167893032,0.026697,112640.0,112630.0,0.07046086]
[1754167893274,0.03501184,112640.0,112630.0,0.07046086]
[1754167894185,0.026697,112640.0,112630.0,0.07046086]
[1754167894830,0.04059367,112640.0,112630.0,0.07046086]
[1754167896117,0.026697,112640.0,112630.0,0.07046086]
[1754167897391,0.03700037,112640.0,112630.0,0.003]
[1754167897645,0.03948037,112640.0,112630.0,0.003]
[1754167898160,0.03948037,112640.0,112630.0,0.01790533]
[1754167898394,0.03948037,112640.0,112630.0,0.05620533]
[1754167898631,0.03700037,112640.0,112630.0,0.05620533]
[1754167898909,0.37700037,112640.0,112630.0,0.07589686]
[1754167899162,0.39089758,112640.0,112630.0,0.07589686]
[1754167899600,0.39337758,112640.0,112630.0,0.07589686]
[1754167900717,0.39337758,112640.0,112630.0,0.05620533]
[1754167901372,0.39337758,112640.0,112630.0,0.01790533]
[1754167902030,0.39337758,112640.0,112630.0,0.05620533]
[1754167902243,0.41004441,112640.0,112630.0,0.05620533]
[1754167902664,0.40756441,112640.0,112630.0,0.05620533]
[1754167902903,0.40756441,112640.0,112630.0,0.06214486]
[1754167903808,0.40756441,112640.0,112630.0,0.06428486]
[1754167904010,0.54504441,112640.0,112630.0,0.06747486]
[1754167904218,0.52837758,112640.0,112630.0,0.06747486]
[1754167904830,0.52639758,112640.0,112630.0,0.06747486]
[1754167905180,0.38891758,112640.0,112630.0,0.06747486]
[1754167905380,0.52639758,112640.0,112630.0,0.06747486]
[1754167905604,0.38891758,112640.0,112630.0,0.06747486]
[1754167906431,0.04891758,112640.0,112630.0,0.06747486]
[1754167907005,0.03502037,112640.0,112630.0,0.06747486]
[1754167907941,0.00832337,112640.0,112630.0,0.06747486]
[1754167909197,0.01030337,112640.0,112630.0,0.06747486]
[1754167909617,0.01030337,112640.0,112630.0,0.06214486]
[1754167911340,0.02420055,112640.0,112630.0,0.06214486]
[1754167911758,0.02420055,112640.0,112630.0,0.06747486]
[1754167912178,0.05089655,112640.0,112630.0,0.06747486]
[1754167915834,0.05089655,112640.0,112630.0,0.05620533]
[1754167916022,0.05337655,112640.0,112630.0,0.01790533]
[1754167916910,0.05337655,112640.0,112630.0,0.05506533]
[1754167917134,0.05337655,112640.0,112630.0,0.05406533]
[1754167917574,0.05089655,112640.0,112630.0,0.05779286]
[1754167919889,0.05089655,112640.0,112630.0,0.06100286]
[1754167920835,0.05089655,112640.0,112630.0,0.06315286]
[1754167921316,0.38891655,112640.0,112630.0,0.06315286]
[1754167921605,0.04891655,112640.0,112630.0,0.06315286]
[1754167921867,0.03501937,112640.0,112630.0,0.06315286]
[1754167922132,0.00832337,112640.0,112630.0,0.06315286]
[1754167922437,0.00832337,112640.0,112630.0,0.2891457]
[1754167922655,0.026693,112650.0,112630.0,0.2891457]
[1754167923010,0.03502156,112650.0,112640.0,0.01490533]
[1754167923209,0.03502156,112650.0,112640.0,0.0841899]
[1754167923467,0.00832856,112650.0,112640.0,0.08855936]
[1754167924641,0.00832856,112650.0,112640.0,0.08955936]
[1754167924909,0.02222467,112650.0,112640.0,0.08955936]
[1754167926630,0.01091102,112670.0,112650.0,0.01490533]
[1754167926875,0.02669,112660.0,112650.0,0.02386127]
[1754167927129,0.02669,112660.0,112650.0,0.02922127]
[1754167927594,0.02669,112660.0,112650.0,0.05566131]
[1754167928684,0.04058571,112660.0,112650.0,0.05566131]
[1754167929586,0.04256571,112660.0,112650.0,0.05566131]
[1754167936851,0.04256571,112660.0,112650.0,0.04134537]
[1754167938489,0.05088509,112660.0,112650.0,0.04134537]
[1754167939778,0.05088509,112660.0,112650.0,0.04455537]
[1754167942134,0.05088509,112660.0,112650.0,0.04670537]
[1754167943169,0.05088617,112660.0,112650.0,0.04670537]
[1754167943369,0.05088617,112660.0,112650.0,0.05426736]
[1754167944281,0.02668617,112660.0,112650.0,0.01174736]
[1754167944489,0.02668617,112660.0,112650.0,0.00756199]
[1754167944490,0.4414233,112660.0,112650.0,0.00756199]
[1754167944732,0.4414233,112660.0,112650.0,0.01174736]
[1754167944954,0.4414233,112660.0,112650.0,0.04991736]
[1754167945175,0.4389333,112660.0,112650.0,0.05501736]
[1754167945408,0.35030046,112660.0,112650.0,0.05501736]
[1754167947383,0.36419629,112660.0,112650.0,0.05501736]
[1754167948978,0.36420392,112660.0,112650.0,0.05501736]
[1754167949644,0.38086584,112660.0,112650.0,0.05501736]
[1754167951282,0.38086584,112660.0,112650.0,0.04991736]
[1754167951772,0.38087133,112660.0,112650.0,0.04991736]
[1754167953818,0.38087133,112660.0,112650.0,0.05501736]
[1754167955235,0.51775133,112660.0,112650.0,0.05501736]
[1754167955886,0.5038555,112660.0,112650.0,0.05501736]
[1754167957396,0.51775773,112660.0,112650.0,0.05501736]
[1754167958234,0.51775773,112660.0,112650.0,0.04991736]
[1754167959404,0.51775773,112660.0,112650.0,0.05501736]
[1754167962644,0.37889773,112660.0,112650.0,0.05501736]
[1754167962821,0.51577773,112660.0,112650.0,0.05501736]
[1754167963364,0.51577978,112660.0,112650.0,0.05501736]
[1754167965075,0.03889978,112660.0,112650.0,0.05501736]
[1754167965286,0.00833563,112660.0,112650.0,0.05501736]
[1754167965504,0.00833563,112660.0,112650.0,0.05723662]
[1754167966361,0.00833563,112660.0,112650.0,0.05923662]
[1754167966791,0.00833563,112660.0,112650.0,0.05701736]
[1754167967286,0.02421067,112660.0,112650.0,0.05701736]
[1754167967558,0.02223067,112660.0,112650.0,0.05901736]
[1754167967785,0.02223067,112660.0,112650.0,0.1476502]
[1754167968024,0.02223067,112660.0,112650.0,0.14986946]
[1754167968484,0.01389504,112660.0,112650.0,0.14986946]
[1754167973051,0.01389504,112660.0,112650.0,0.1476502]
[1754167973305,0.01389504,112660.0,112650.0,0.05901736]
[1754167973510,0.01587504,112660.0,112650.0,0.19585736]
[1754167973944,0.01587504,112660.0,112650.0,0.05901736]
[1754167974158,0.00198,112660.0,112650.0,0.05901736]
[1754167975547,0.01986453,112670.0,112650.0,0.05901736]
[1754167975764,0.02818182,112670.0,112660.0,0.00418537]
[1754167975995,0.01029729,112670.0,112660.0,0.04148537]
[1754167976217,0.01029729,112670.0,112660.0,0.04708611]
[1754167976972,0.00831729,112670.0,112660.0,0.05320611]
[1754167977190,0.02221069,112670.0,112660.0,0.05320611]
[1754167977845,0.05781177,112670.0,112660.0,0.05320611]
[1754167978302,0.05780985,112670.0,112660.0,0.05320611]
[1754167978998,0.05780985,112670.0,112660.0,0.05420611]
[1754167979202,0.04949448,112670.0,112660.0,0.05420611]
[1754167981260,0.04949448,112670.0,112660.0,0.05120611]
[1754167981261,0.05147448,112670.0,112660.0,0.05120611]
[1754167981484,0.05147448,112670.0,112660.0,0.04908611]
[1754167981946,0.05395448,112670.0,112660.0,0.01178611]
[1754167982210,0.05978889,112670.0,112660.0,0.04908611]
[1754167984223,0.04589549,112670.0,112660.0,0.04908611]
[1754167985231,0.04837549,112670.0,112660.0,0.002]
[1754167985670,0.04837549,112670.0,112660.0,0.00618537]
[1754167985888,0.04837549,112670.0,112660.0,0.04348537]
[1754167986332,0.04837549,112670.0,112660.0,0.04248537]
[1754167986804,0.04837549,112670.0,112660.0,0.04148537]
[1754167987030,0.04837549,112670.0,112660.0,0.00520474]
[1754167987257,0.04837549,112670.0,112660.0,0.00939011]
[1754167987497,0.04837549,112670.0,112650.0,0.04486199]
[1754167987734,0.52521549,112670.0,112660.0,0.00418537]
[1754167988198,0.63048769,112670.0,112640.0,0.24835556]
[1754167988429,0.62800769,112670.0,112660.0,0.00418537]
[1754167988668,0.34,112660.0,112650.0,0.0373]
[1754167988903,0.35034441,112660.0,112650.0,0.06213556]
[1754167989801,0.01034441,112660.0,112650.0,0.06213556]
[1754167990044,0.01034441,112660.0,112650.0,0.0373]
[1754167990743,0.01034441,112660.0,112650.0,0.04148537]
[1754167990974,0.11530229,112660.0,112630.0,0.04302753]
[1754167991202,0.22790284,112650.0,112630.0,0.04302753]
[1754167991436,0.00203,112640.0,112630.0,0.04302753]
[1754167991679,0.01035036,112640.0,112630.0,0.0472129]
[1754167992123,0.02424751,112640.0,112630.0,0.0472129]
[1754167993255,0.02424751,112640.0,112630.0,0.04302753]
[1754167993485,0.02424751,112640.0,112630.0,0.0472129]
[1754167993942,0.01035036,112640.0,112630.0,0.0472129]
[1754167994392,0.35035036,112640.0,112630.0,0.04148537]
[1754167994619,0.22547284,112650.0,112630.0,0.04148537]
[1754167994835,0.00073,112640.0,112630.0,0.04448537]
[1754167996447,0.00073,112640.0,112630.0,0.04660537]
[1754167996672,0.34073,112640.0,112630.0,0.04148537]
[1754167996893,0.42936284,112640.0,112630.0,0.0373]
[1754167997111,0.42936284,112640.0,112620.0,0.00718537]
[1754167997112,0.42936284,112640.0,112620.0,0.04448537]
[1754167998391,0.4432608,112640.0,112620.0,0.04448537]
[1754167998833,0.026698,112630.0,112620.0,0.04448537]
[1754167999061,0.026698,112630.0,112620.0,0.04660537]
[1754167999940,0.026698,112630.0,112620.0,0.04760537]
[1754168000150,0.026698,112630.0,112620.0,0.04808434]
[1754168000581,0.026698,112630.0,112620.0,0.07369833]
[1754168000785,0.027428,112630.0,112620.0,0.07369833]
[1754168001227,0.027428,112630.0,112620.0,0.07469833]
[1754168002314,0.026698,112630.0,112620.0,0.07469833]
[1754168003001,0.027428,112630.0,112620.0,0.07469833]
[1754168004334,0.027428,112630.0,112620.0,0.04908434]
[1754168004998,0.027428,112630.0,112620.0,0.04396434]
[1754168005764,0.027428,112630.0,112620.0,0.04690434]
[1754168005983,0.026698,112630.0,112620.0,0.04905434]
[1754168010072,0.04059576,112630.0,112620.0,0.04905434]
[1754168010861,0.04059576,112630.0,112620.0,0.07476533]
[1754168011313,0.0488979,112630.0,112620.0,0.07476533]
[1754168011546,0.04059576,112630.0,112620.0,0.07476533]
[1754168012222,0.04889961,112630.0,112620.0,0.07476533]
[1754168012424,0.04889956,112630.0,112620.0,0.07476533]
[1754168014005,0.0350018,112630.0,112620.0,0.07476533]
[1754168016085,0.3750018,112630.0,112620.0,0.07476533]
[1754168016331,0.0350018,112630.0,112620.0,0.07476533]
[1754168017202,0.04889926,112630.0,112620.0,0.07476533]
[1754168023320,0.04892735,112630.0,112620.0,0.07476533]
[1754168024025,0.03502989,112630.0,112620.0,0.07476533]
[1754168024972,0.00833189,112630.0,112620.0,0.07476533]
[1754168028426,0.0222293,112630.0,112620.0,0.07476533]